fUSD/lending_fUSD_20260503
["ID","MTS","AMOUNT","RATE_DAILY","PERIOD"]
[421512731,1777794649000,-6608.5941073,0.00037886,2]
[421512733,1777794649000,-23159.93177981,0.00037886,2]
[421512695,1777794649000,-1070.0,0.00037145,30]
[421512712,1777794649000,-50136.28,0.000376,7]
[421512727,1777794649000,-206.47140286,0.00037868,2]
[421512714,1777794649000,-185.321603,0.000376,7]
[421512711,1777794649000,-720.55405051,0.0003759,2]
[421512709,1777794649000,-150.0,0.00037581,7]
[421512699,1777794649000,-150.0,0.00037211,30]
[421512698,1777794649000,-188.94,0.000372,30]
[421512700,1777794649000,-150.0,0.00037322,7]
[421512708,1777794649000,-2614.84687844,0.00037539,2]
[421512702,1777794649000,-568.31,0.00037373,2]
[421512704,1777794649000,-150.0,0.00037419,7]
[421512703,1777794649000,-1487.37832379,0.00037382,2]
[421512707,1777794649000,-150.0,0.00037524,7]
[421512706,1777794649000,-150.0,0.00037463,7]
[421512701,1777794649000,-150.0,0.00037355,7]
[421512710,1777794649000,-150.0,0.00037581,7]
[421512721,1777794649000,-151.0,0.000376,7]
[421512687,1777794649000,-500.0,0.00036825,30]
[421512715,1777794649000,-151.0,0.000376,7]
[421512705,1777794649000,-5500.0,0.00037463,7]
[421512735,1777794662000,449.5912096,0.00022219,120]
[421512734,1777794662000,300.0,0.00018745,120]
[421512736,1777795041000,184.32,0.00030071,120]
[421512751,1777795558000,-1203.0055,0.00016924,2]
[421512749,1777795558000,-161.68,0.0001494,2]
[421512750,1777795558000,-2500.0,0.00016591,2]
[421512755,1777795558000,-6187.94061496,0.00016941,2]
[421512754,1777795558000,-300.0,0.0001694,2]
[421512752,1777795558000,-255.0,0.0001694,2]
[421512753,1777795558000,-1200.0,0.0001694,2]
[421512777,1777795832000,-150.0,0.00017038,2]
[421512776,1777795832000,-150.0,0.00017038,2]
[421512770,1777795832000,-151.0,0.00017025,2]
[421512769,1777795832000,-151.0,0.00017025,2]
[421512767,1777795832000,-151.0,0.00017025,2]
[421512768,1777795832000,-150.0,0.00017025,2]
[421512765,1777795832000,-150.0,0.00017025,2]
[421512762,1777795832000,-300.0,0.00017024,2]
[421512764,1777795832000,-142.10612541,0.00017025,2]
[421512763,1777795832000,-8.89387459,0.00017025,2]
[421512761,1777795832000,-190.0,0.000122,2]
[421512772,1777795832000,-150.0,0.00017025,2]
[421512766,1777795832000,-151.0,0.00017025,2]
[421512775,1777795832000,-2500.0,0.00017025,2]
[421512783,1777795832000,-151.0,0.00017039,2]
[421512771,1777795832000,-151.0,0.00017025,2]
[421512774,1777795832000,-151.0,0.00017025,2]
[421512788,1777795832000,-152.0,0.00017039,2]
[421512790,1777795832000,-150.0,0.00017039,2]
[421512786,1777795832000,-152.0,0.00017039,2]
[421512792,1777795832000,-152.0,0.00017039,2]
[421512785,1777795832000,-151.0,0.00017039,2]
[421512782,1777795832000,-152.0,0.00017039,2]
[421512794,1777795832000,-110.84336172,0.00017039,2]
[421512780,1777795832000,-151.0,0.00017038,2]
[421512778,1777795832000,-153.0,0.00017038,2]
[421512781,1777795832000,-152.0,0.00017039,2]
[421512779,1777795832000,-151.0,0.00017038,2]
[421512773,1777795832000,-152.0,0.00017025,2]
[421512784,1777795832000,-151.0,0.00017039,2]
[421512802,1777795841000,-151.0,0.0001704,2]
[421512798,1777795841000,-39.15663828,0.00017039,2]
[421512800,1777795841000,-151.0,0.0001704,2]
[421512801,1777795841000,-152.0,0.0001704,2]
[421512799,1777795841000,-151.0,0.00017039,2]
[421512805,1777795841000,-3085.67554043,0.00017069,2]
[421512804,1777795841000,-153.0,0.00017041,2]
[421512806,1777795841000,-340.65297838,0.00017069,2]
[421512808,1777795841000,-391.87141156,0.00017124,2]
[421512807,1777795841000,-504.29290158,0.00017069,2]
[421512803,1777795841000,-151.0,0.0001704,2]
[421512854,1777795843000,-500.0,0.00017124,2]
[421512853,1777795843000,-500.0,0.00017124,2]
[421512852,1777795843000,-500.0,0.00017124,2]
[421512851,1777795843000,-500.0,0.00017124,2]
[421512849,1777795843000,-500.0,0.00017124,2]
[421512850,1777795843000,-500.0,0.00017124,2]
[421512847,1777795843000,-500.0,0.00017124,2]
[421512848,1777795843000,-373.93909945,0.00017124,2]
[421512844,1777795843000,-232.62264806,0.00017124,2]
[421512846,1777795843000,-500.0,0.00017124,2]
[421512841,1777795843000,-68.30879275,0.00017124,2]
[421512845,1777795843000,-500.0,0.00017124,2]
[421512842,1777795843000,-500.0,0.00017124,2]
[421512840,1777795843000,-366.42560164,0.00017124,2]
[421512839,1777795843000,-378.60973436,0.00017124,2]
[421512838,1777795843000,-142.964664,0.00017124,2]
[421512836,1777795843000,-263.00072801,0.00017124,2]
[421512837,1777795843000,-357.035336,0.00017124,2]
[421512835,1777795843000,-108.12858844,0.00017124,2]
[421512856,1777795843000,-322.5,0.00017124,2]
[421512843,1777795843000,-500.0,0.00017124,2]
[421512862,1777795843000,-500.0,0.00017124,2]
[421512855,1777795843000,-500.0,0.00017124,2]
[421512872,1777795843000,-500.0,0.00017124,2]
[421512857,1777795843000,-500.0,0.00017124,2]
[421512879,1777795843000,-500.0,0.00017124,2]
[421512878,1777795843000,-500.0,0.00017124,2]
[421512877,1777795843000,-500.0,0.00017124,2]
[421512876,1777795843000,-500.0,0.00017124,2]
[421512868,1777795843000,-500.0,0.00017124,2]
[421512874,1777795843000,-500.0,0.00017124,2]
[421512870,1777795843000,-500.0,0.00017124,2]
[421512880,1777795843000,-109.26126195,0.00017124,2]
[421512873,1777795843000,-500.0,0.00017124,2]
[421512871,1777795843000,-500.0,0.00017124,2]
[421512867,1777795843000,-500.0,0.00017124,2]
[421512866,1777795843000,-500.0,0.00017124,2]
[421512865,1777795843000,-500.0,0.00017124,2]
[421512863,1777795843000,-500.0,0.00017124,2]
[421512864,1777795843000,-500.0,0.00017124,2]
[421512861,1777795843000,-500.0,0.00017124,2]
[421512858,1777795843000,-500.0,0.00017124,2]
[421512859,1777795843000,-500.0,0.00017124,2]
[421512860,1777795843000,-500.0,0.00017124,2]
[421512869,1777795843000,-500.0,0.00017124,2]
[421512894,1777795844000,-500.0,0.00017124,2]
[421512893,1777795844000,-500.0,0.00017124,2]
[421512895,1777795844000,-304.05021611,0.00017124,2]
[421512898,1777795844000,-500.0,0.00017124,2]
[421512902,1777795844000,-500.0,0.00017124,2]
[421512899,1777795844000,-500.0,0.00017124,2]
[421512900,1777795844000,-500.0,0.00017124,2]
[421512901,1777795844000,-500.0,0.00017124,2]
[421512896,1777795844000,-500.0,0.00017124,2]
[421512897,1777795844000,-500.0,0.00017124,2]
[421512892,1777795844000,-500.0,0.00017124,2]
[421512882,1777795844000,-500.0,0.00017124,2]
[421512890,1777795844000,-500.0,0.00017124,2]
[421512887,1777795844000,-500.0,0.00017124,2]
[421512889,1777795844000,-500.0,0.00017124,2]
[421512886,1777795844000,-500.0,0.00017124,2]
[421512888,1777795844000,-500.0,0.00017124,2]
[421512884,1777795844000,-500.0,0.00017124,2]
[421512885,1777795844000,-500.0,0.00017124,2]
[421512883,1777795844000,-500.0,0.00017124,2]
[421512881,1777795844000,-390.73873805,0.00017124,2]
[421512891,1777795844000,-500.0,0.00017124,2]
[421512903,1777795844000,-500.0,0.00017124,2]
[421512924,1777795844000,-436.0,0.00021,2]
[421512906,1777795844000,-500.0,0.00017124,2]
[421512904,1777795844000,-500.0,0.00017124,2]
[421512928,1777795844000,-4361.23873765,0.00021918,2]
[421512926,1777795844000,-162.45035992,0.00021371,2]
[421512927,1777795844000,-150.0,0.000219,2]
[421512925,1777795844000,-1000.0,0.00021048,2]
[421512921,1777795844000,-436.0,0.0002,2]
[421512922,1777795844000,-587.0,0.00020308,2]
[421512920,1777795844000,-500.0,0.00019909,2]
[421512919,1777795844000,-297.47566475,0.00019906,2]
[421512917,1777795844000,-500.0,0.000192,7]
[421512918,1777795844000,-3930.62142035,0.00019828,2]
[421512923,1777795844000,-226.1015851,0.00020598,2]
[421512908,1777795844000,-500.0,0.00017124,2]
[421512912,1777795844000,-500.0,0.00017124,2]
[421512915,1777795844000,-420.0,0.00018593,2]
[421512916,1777795844000,-161.68,0.00018675,2]
[421512909,1777795844000,-297.78963427,0.00017124,2]
[421512910,1777795844000,-500.0,0.00017124,2]
[421512914,1777795844000,-504.96295908,0.00017269,7]
[421512913,1777795844000,-297.47566483,0.00017169,2]
[421512905,1777795844000,-500.0,0.00017124,2]
[421512911,1777795844000,-500.0,0.00017124,2]
[421512907,1777795844000,-500.0,0.00017124,2]
[421512947,1777795846000,-1152.0,0.00024225,2]
[421512948,1777795846000,-500.0,0.00024999,2]
[421512944,1777795846000,-3320.29,0.00023368,2]
[421512951,1777795846000,-297.47566475,0.00025379,2]
[421512949,1777795846000,-437.0,0.00025,2]
[421512958,1777795846000,-450.92,0.00027397,10]
[421512952,1777795846000,-500.0,0.00025669,2]
[421512953,1777795846000,-161.68,0.00026146,2]
[421512954,1777795846000,-166.67,0.0002644,30]
[421512955,1777795846000,-1403.0,0.00026458,2]
[421512946,1777795846000,-436.0,0.00024,2]
[421512950,1777795846000,-3930.62142035,0.00025346,2]
[421512943,1777795846000,-1000.0,0.000232,7]
[421512931,1777795846000,-204.724591,0.000192,2]
[421512941,1777795846000,-297.47566475,0.00022643,2]
[421512942,1777795846000,-436.0,0.00023,2]
[421512939,1777795846000,-3930.62142035,0.00022587,2]
[421512938,1777795846000,-370.62,0.000225,2]
[421512937,1777795846000,-161.68,0.00022411,2]
[421512935,1777795846000,-300.0,0.000222,2]
[421512940,1777795846000,-500.0,0.0002263,2]
[421512933,1777795846000,-436.0,0.00022,2]
[421512934,1777795846000,-823.0,0.0002218,2]
[421512932,1777795846000,-638.76126235,0.00021918,2]
[421512930,1777795846000,-204.0,0.0001713,2]
[421512957,1777795846000,-506.0,0.00027137,2]
[421512945,1777795846000,-299.99,0.00023368,7]
[421512956,1777795846000,-1500.0,0.000271,7]
[421512936,1777795846000,-500.0,0.00022294,2]
[421512959,1777795846000,-513.25,0.00027397,10]
[421512960,1777795846000,-427.7,0.00027397,10]
[421512981,1777795846000,-506.0,0.00031203,6]
[421512986,1777795846000,-3000.0,0.00032164,30]
[421512983,1777795846000,-152.0,0.00031704,30]
[421512984,1777795846000,-3000.0,0.00031945,30]
[421512985,1777795846000,-436.0,0.00032147,30]
[421512988,1777795846000,-3000.0,0.00032356,30]
[421512979,1777795846000,-2000.0,0.000311,7]
[421512980,1777795846000,-436.0,0.00031147,30]
[421512982,1777795846000,-152.0,0.00031672,30]
[421512978,1777795846000,-297.47566475,0.00030853,2]
[421512977,1777795846000,-200.0,0.00030641,2]
[421512976,1777795846000,-365.0,0.00030179,30]
[421512974,1777795846000,-1366.79503951,0.00030137,120]
[421512972,1777795846000,-500.0,0.00030136,7]
[421512963,1777795846000,-166.67,0.00027832,30]
[421512961,1777795846000,-356.42,0.00027397,10]
[421512964,1777795846000,-297.47566475,0.00028116,2]
[421512962,1777795846000,-461.49,0.00027397,10]
[421512965,1777795846000,-168.5,0.0002816,2]
[421512975,1777795846000,-550.0,0.00030179,30]
[421512966,1777795846000,-5000.01,0.00028567,2]
[421512971,1777795846000,-390.02928784,0.00030136,7]
[421512970,1777795846000,-161.68,0.00029881,2]
[421512968,1777795846000,-506.0,0.0002917,4]
[421512969,1777795846000,-166.67,0.00029223,30]
[421512973,1777795846000,-5508.35196049,0.00030137,120]
[421512967,1777795846000,-200.0,0.00028997,2]
[421512994,1777795847000,-454.08061733,0.00032795,30]
[421512990,1777795847000,-2531.08061733,0.00032575,30]
[421512993,1777795847000,-468.91938267,0.00032575,30]
[421512996,1777795847000,-616.0,0.00032795,30]
[421512997,1777795847000,-1548.31428763,0.00032795,30]
[421513000,1777795847000,-2046.39329852,0.00033205,30]
[421512998,1777795847000,-3000.0,0.00032986,30]
[421512999,1777795847000,-436.0,0.00033147,30]
[421512995,1777795847000,-381.60509504,0.00032795,30]
[421513003,1777795988000,151.74,0.00012,2]
[421513004,1777796218000,-400.0,0.0001674,2]
[421513005,1777796711000,180.57,0.00027263,120]
[421513007,1777796759000,-6265.88418844,0.00016731,2]
[421513006,1777796759000,-214.42,0.000131,2]
[421513008,1777796759000,-300.0,0.00016738,2]
[421513010,1777796759000,-300.0,0.00016738,2]
[421513009,1777796759000,-1200.0,0.00016738,2]
[421513012,1777796759000,-300.0,0.00016739,2]
[421513014,1777796759000,-100.0,0.0001674,2]
[421513013,1777796759000,-744.0,0.00016739,2]
[421513016,1777796759000,-33053.29199494,0.00016741,2]
[421513015,1777796759000,-405.0,0.0001674,2]
[421513011,1777796759000,-227.0,0.00016739,2]
[421513020,1777796946000,-162.03,0.00013489,2]
[421513021,1777796946000,-392.32627117,0.00014838,2]
[421513023,1777797008000,1524.33903101,0.00012,2]
[421513024,1777797008000,414822.35918611,0.00012,2]
[421513022,1777797008000,2143.86281249,0.00012,2]
[421513031,1777797032000,-750.16626312,0.0001674,2]
[421513028,1777797032000,-237.2332,0.00016639,2]
[421513029,1777797032000,-465.3958,0.00016641,2]
[421513025,1777797032000,-152.0,0.00012641,7]
[421513026,1777797032000,-132.15203215,0.00015416,2]
[421513032,1777797032000,-1200.0,0.0001674,2]
[421513027,1777797032000,-29.87796785,0.00015416,2]
[421513039,1777797032000,-1005.3639732,0.00016741,2]
[421513033,1777797032000,-71.15571393,0.0001674,2]
[421513035,1777797032000,-233.61731631,0.0001674,2]
[421513034,1777797032000,-228.84428607,0.0001674,2]
[421513036,1777797032000,-2.38268369,0.0001674,2]
[421513037,1777797032000,-416.36731631,0.00016741,2]
[421513038,1777797032000,-347.8503141,0.00016741,2]
[421513030,1777797032000,-252.30883128,0.0001674,2]
[421513049,1777797039000,-2008.31450221,0.00016741,2]
[421513051,1777797039000,-2651.27112263,0.00016741,2]
[421513052,1777797039000,-1722.94122752,0.00016741,2]
[421513053,1777797039000,-866.12932493,0.00016741,2]
[421513050,1777797039000,-3115.23642913,0.00016741,2]
[421513056,1777797039000,-1715.08907949,0.00016741,2]
[421513055,1777797039000,-1193.48095674,0.00016741,2]
[421513057,1777797039000,-2032.34232518,0.00016741,2]
[421513058,1777797039000,-22238.65313993,0.00016741,2]
[421513054,1777797039000,-359.96230042,0.00016741,2]
[421513095,1777797041000,-151.0,0.00016831,2]
[421513101,1777797041000,-523.67921424,0.00016831,2]
[421513100,1777797041000,-229.01220332,0.00016831,2]
[421513099,1777797041000,-500.0,0.00016831,2]
[421513097,1777797041000,-500.0,0.00016831,2]
[421513094,1777797041000,-500.0,0.00016831,2]
[421513093,1777797041000,-151.0,0.00016831,2]
[421513103,1777797041000,-500.0,0.00016831,2]
[421513108,1777797041000,-500.0,0.00016831,2]
[421513111,1777797041000,-500.0,0.0001684,2]
[421513112,1777797041000,-499.785,0.0001684,2]
[421513098,1777797041000,-151.0,0.00016831,2]
[421513096,1777797041000,-151.0,0.00016831,2]
[421513091,1777797041000,-151.0,0.00016831,2]
[421513085,1777797041000,-500.0,0.00016831,2]
[421513102,1777797041000,-500.0,0.00016831,2]
[421513088,1777797041000,-500.0,0.00016831,2]
[421513087,1777797041000,-151.0,0.00016831,2]
[421513089,1777797041000,-151.0,0.00016831,2]
[421513082,1777797041000,-2435.57698886,0.00016824,2]
[421513086,1777797041000,-500.0,0.00016831,2]
[421513081,1777797041000,-294.82075229,0.00016824,2]
[421513110,1777797041000,-545.90680205,0.00016831,2]
[421513090,1777797041000,-500.0,0.00016831,2]
[421513080,1777797041000,-2500.0,0.00016741,2]
[421513084,1777797041000,-151.0,0.00016831,2]
[421513083,1777797041000,-200.0,0.00016831,2]
[421513079,1777797041000,-6790.0623,0.00016741,2]
[421513078,1777797041000,-9762.22539327,0.00016741,2]
[421513092,1777797041000,-500.0,0.00016831,2]
[421513104,1777797041000,-500.0,0.00016831,2]
[421513132,1777797041000,-500.0,0.0001684,2]
[421513113,1777797041000,-500.0,0.0001684,2]
[421513114,1777797041000,-254.50382875,0.0001684,2]
[421513141,1777797041000,-7210.39503157,0.00016841,2]
[421513140,1777797041000,-14203.0113925,0.00016841,2]
[421513138,1777797041000,-922.96719964,0.00016841,2]
[421513136,1777797041000,-18560.04515505,0.00016841,2]
[421513134,1777797041000,-500.0,0.0001684,2]
[421513137,1777797041000,-335.38,0.00016841,2]
[421513133,1777797041000,-413.18874711,0.0001684,2]
[421513129,1777797041000,-391.6559136,0.0001684,2]
[421513130,1777797041000,-620.45941623,0.0001684,2]
[421513131,1777797041000,-500.0,0.0001684,2]
[421513135,1777797041000,-440.98154951,0.0001684,2]
[421513128,1777797041000,-500.0,0.0001684,2]
[421513125,1777797041000,-418.06075265,0.0001684,2]
[421513123,1777797041000,-500.0,0.0001684,2]
[421513139,1777797041000,-297.0302,0.00016841,2]
[421513121,1777797041000,-500.0,0.0001684,2]
[421513106,1777797041000,-500.0,0.00016831,2]
[421513109,1777797041000,-500.0,0.00016831,2]
[421513107,1777797041000,-500.0,0.00016831,2]
[421513116,1777797041000,-500.0,0.0001684,2]
[421513127,1777797041000,-500.0,0.0001684,2]
[421513126,1777797041000,-500.0,0.0001684,2]
[421513105,1777797041000,-500.0,0.00016831,2]
[421513120,1777797041000,-500.0,0.0001684,2]
[421513118,1777797041000,-427.5,0.0001684,2]
[421513117,1777797041000,-600.49186891,0.0001684,2]
[421513122,1777797041000,-500.0,0.0001684,2]
[421513119,1777797041000,-500.0,0.0001684,2]
[421513115,1777797041000,-265.02681406,0.0001684,2]
[421513124,1777797041000,-500.0,0.0001684,2]
[421513214,1777797043000,-1199.99937402,0.00016841,2]
[421513219,1777797044000,-3136.28,0.00016841,2]
[421513218,1777797044000,-43894.3826052,0.00016841,2]
[421513248,1777797046000,-2796.35801028,0.00016841,2]
[421513247,1777797046000,-2634.293386,0.00016841,2]
[421513249,1777797047000,-65.39580854,0.00016841,2]
[421513250,1777797047000,-4700.58213335,0.00016841,2]
[421513251,1777797047000,-3816.14776504,0.00016841,2]
[421513252,1777797047000,-298.5651814,0.00016841,2]
[421513291,1777797058000,516263.48263658,0.000107,2]
[421513292,1777797364000,152.0,0.00011407,7]
[421513294,1777797932000,-1200.0,0.0001664,2]
[421513293,1777797932000,-169.05,0.00016206,2]
[421513297,1777797932000,-2500.0,0.00016659,2]
[421513296,1777797932000,-16890.4,0.00016641,2]
[421513298,1777797932000,-2160.91452513,0.00016659,2]
[421513295,1777797932000,-231.0,0.0001664,2]
[421513302,1777797932000,-500.0,0.0001681,2]
[421513300,1777797932000,-500.0,0.0001681,2]
[421513301,1777797932000,-151.0,0.0001681,2]
[421513303,1777797932000,-1222.63711683,0.00016819,2]
[421513304,1777797932000,-15932.39853181,0.0001682,2]
[421513299,1777797932000,-200.0,0.0001681,2]
[421513305,1777798156000,-152.0,0.00012081,7]
[421513306,1777798156000,-500.0,0.00016719,2]
[421513307,1777798156000,-263.11014699,0.00016719,2]
[421513308,1777798156000,-249.98785253,0.00016719,2]
[421513310,1777798156000,-500.0,0.00016719,2]
[421513309,1777798156000,-500.0,0.00016719,2]
[421513315,1777798156000,-500.0,0.00016719,2]
[421513313,1777798156000,-500.0,0.00016719,2]
[421513314,1777798156000,-500.0,0.00016719,2]
[421513312,1777798156000,-258.48073088,0.00016719,2]
[421513316,1777798156000,-338.80297856,0.00016719,2]
[421513317,1777798156000,-4263.32543382,0.0001672,2]
[421513311,1777798156000,-409.57643122,0.00016719,2]
[421513318,1777798176000,152.0,0.0001232,7]
[421513323,1777798231000,-300.0,0.00016719,2]
[421513324,1777798231000,-1200.0,0.00016719,2]
[421513327,1777798231000,-3221.81881226,0.0001672,2]
[421513326,1777798231000,-566.95138898,0.0001672,2]
[421513328,1777798231000,-804879.48843824,0.0001672,2]
[421513331,1777798231000,-151.0,0.0001672,2]
[421513330,1777798231000,-222.44596096,0.0001672,2]
[421513325,1777798231000,-151.1837267,0.0001672,2]
[421513329,1777798231000,-561.00796957,0.0001672,2]
[421513334,1777798231000,-261.30601008,0.0001682,2]
[421513335,1777798231000,-515.60901162,0.0001682,2]
[421513332,1777798231000,-152.0,0.00016723,7]
[421513336,1777798231000,-1498.0715671,0.0001682,2]
[421513337,1777798231000,-276.6545779,0.0001682,2]
[421513338,1777798231000,-3140.56264633,0.0001682,2]
[421513333,1777798231000,-16575.06701829,0.0001682,2]
[421513371,1777798237000,-463.38078226,0.00018856,2]
[421513370,1777798237000,-753.57921774,0.00018856,2]
[421513368,1777798237000,-166.66,0.00018685,2]
[421513366,1777798237000,-250.0,0.00017826,2]
[421513367,1777798237000,-1356.0,0.00018357,2]
[421513362,1777798237000,-500.0,0.0001684,2]
[421513364,1777798237000,-162.03,0.00017344,2]
[421513361,1777798237000,-500.0,0.0001684,2]
[421513363,1777798237000,-300.0,0.000169,6]
[421513358,1777798237000,-192.0806635,0.0001682,2]
[421513360,1777798237000,-500.0,0.0001684,2]
[421513359,1777798237000,-500.0,0.0001684,2]
[421513357,1777798237000,-6690.00989847,0.0001682,2]
[421513372,1777798237000,-166.66,0.00019078,2]
[421513365,1777798237000,-2500.0,0.00017826,2]
[421513375,1777798237000,-3000.0,0.00019452,2]
[421513369,1777798237000,-228.82,0.00018689,2]
[421513376,1777798237000,-3000.0,0.00019452,2]
[421513390,1777798237000,-190.11,0.00020527,2]
[421513385,1777798237000,-157.69,0.00020015,2]
[421513387,1777798237000,-166.66,0.00020258,2]
[421513386,1777798237000,-3000.0,0.00020164,2]
[421513382,1777798237000,-8797.93,0.00019928,2]
[421513384,1777798237000,-261.0,0.0002,2]
[421513381,1777798237000,-166.66,0.00019865,2]
[421513388,1777798237000,-561.00796954,0.00020359,2]
[421513389,1777798237000,-3000.0,0.00020411,2]
[421513383,1777798237000,-3000.0,0.00019945,2]
[421513378,1777798237000,-500.0,0.00019674,2]
[421513377,1777798237000,-166.66,0.00019472,2]
[421513373,1777798237000,-500.0,0.000192,7]
[421513374,1777798237000,-162.03,0.00019271,2]
[421513380,1777798237000,-166.54,0.00019854,2]
[421513379,1777798237000,-3000.0,0.00019699,2]
[421513397,1777798238000,-4693.87930378,0.00020889,2]
[421513393,1777798238000,-640.18,0.00020713,2]
[421513395,1777798238000,-68378.30858569,0.00020889,2]
[421513394,1777798238000,-501.0,0.00020795,2]
[421513392,1777798238000,-3000.0,0.00020658,2]
[421513391,1777798238000,-166.66,0.00020652,2]
[421513396,1777798238000,-816.62506821,0.00020889,2]
[421513420,1777798240000,-1649.0799,0.00020889,2]
[421513433,1777798242000,-42.42730045,0.00020889,2]
[421513432,1777798242000,-621.66646286,0.00020889,2]
[421513435,1777798243000,-4433.3825403,0.00020889,2]
[421513434,1777798243000,-195.21747901,0.00020889,2]
[421513440,1777798245000,-863.4355625,0.00020904,2]
[421513439,1777798245000,-2356.6797597,0.00020889,2]
[421513441,1777798246000,-2136.5644375,0.00020904,2]
[421513442,1777798246000,-431.26535631,0.00020989,2]
[421513457,1777798627000,2761.34527,7.945e-05,2]
[421513459,1777799047000,180.57,0.00027227,120]
[421513460,1777799144000,396.35,0.00029452,120]
[421513461,1777799177000,-2949.47,0.0001662,2]
[421513462,1777799245000,-186.81,0.0001662,2]
[421513464,1777799245000,-500.0,0.00016719,2]
[421513466,1777799245000,-152.78919869,0.00018282,2]
[421513465,1777799245000,-500.0,0.00016719,2]
[421513463,1777799245000,-500.0,0.00016719,2]
[421513468,1777799364000,-500.0,0.000192,7]
[421513467,1777799364000,-297.08935101,0.00019051,2]
[421513469,1777799431000,-204.39991097,0.0002,2]
[421513470,1777799431000,-43.60008903,0.0002,2]
[421513478,1777799431000,-500.0,0.00020903,2]
[421513471,1777799431000,-336.91875458,0.00020139,2]
[421513472,1777799431000,-22831.68716402,0.00020139,2]
[421513476,1777799431000,-2330.7450653,0.00020268,2]
[421513474,1777799431000,-2217.961851,0.00020268,2]
[421513473,1777799431000,-576.2419905,0.00020139,2]
[421513475,1777799431000,-1123.5536753,0.00020268,2]
[421513479,1777799431000,-150.0,0.00020989,2]
[421513485,1777799431000,-200.0,0.00021651,2]
[421513477,1777799431000,-1049.1,0.00020306,2]
[421513482,1777799431000,-162.45035992,0.00021216,2]
[421513490,1777799431000,-500.0,0.00021717,2]
[421513488,1777799431000,-500.0,0.00021717,2]
[421513486,1777799431000,-174.99149677,0.00021717,2]
[421513489,1777799431000,-184.1771029,0.00021717,2]
[421513487,1777799431000,-500.0,0.00021717,2]
[421513483,1777799431000,-12254.98,0.00021398,2]
[421513480,1777799431000,-248.0,0.00021,2]
[421513481,1777799431000,-162.03,0.00021198,2]
[421513484,1777799431000,-2254.63865133,0.00021618,2]
[421513497,1777799432000,-308.54548101,0.00021718,2]
[421513495,1777799432000,-187.51332305,0.00021717,2]
[421513494,1777799432000,-299.1901788,0.00021717,2]
[421513493,1777799432000,-230.93651162,0.00021717,2]
[421513492,1777799432000,-37076.66947039,0.00021718,2]
[421513491,1777799432000,-2500.0,0.00021718,2]
[421513509,1777799438000,-499.40535172,0.00021717,2]
[421513510,1777799438000,-0.59464828,0.00021717,2]
[421513511,1777799438000,-500.0,0.00021717,2]
[421513513,1777799438000,-300.0,0.00021717,2]
[421513514,1777799438000,-139044.75711617,0.00021718,2]
[421513512,1777799438000,-500.0,0.00021717,2]
[421513776,1777799440000,-700.0,0.00021718,2]
[421513775,1777799440000,-688.8580236,0.00021718,2]
[421513773,1777799440000,-1149.11159905,0.00021718,2]
[421513758,1777799440000,-90089.39066209,0.00021718,2]
[421513794,1777799442000,-1590.0,0.00021718,2]
[421513798,1777799443000,-407.0,0.00021718,2]
[421513799,1777799443000,-420.75597719,0.00021718,2]
[421513797,1777799443000,-60648.96433175,0.00021718,2]
[421513800,1777799443000,-180.57,0.00021782,2]
[421513803,1777799443000,-300.0,0.00021817,2]